bitfinex-derivatives/quotes_BNBF0:USTF0_20250630
["timestamp","ask_amount","ask_price","bid_price","bid_amount"]
[1751320495147,1.50492607,657.74,657.27,1.611]
[1751320495450,1.50492607,657.62,657.27,1.611]
[1751320495645,1.50492607,657.61,657.27,1.611]
[1751320495851,1.50492607,657.63,657.27,1.611]
[1751320496150,1.50492607,657.6,657.27,1.611]
[1751320497147,1.50492607,657.58,657.27,1.611]
[1751320498349,1.50492607,657.59,657.27,1.611]
[1751320499250,1.50492607,657.56,657.27,1.611]
[1751320501152,1.50492607,657.55,657.27,1.611]
[1751320501347,1.50492607,657.53,657.27,1.611]
[1751320501548,1.50492607,657.52,657.27,1.611]
[1751320502354,1.50492607,657.49,657.27,1.611]
[1751320503353,1.50492607,657.46,657.27,1.611]
[1751320504054,2.26228487,657.63,657.27,1.611]
[1751320504249,2.26228487,657.62,657.27,1.611]
[1751320505554,2.26228487,657.66,657.27,1.611]
[1751320505754,2.26228487,657.65,657.27,1.611]
[1751320505954,2.26228487,657.64,657.27,1.611]
[1751320506551,2.26228487,657.65,657.28,2.127]
[1751320507054,2.26228487,657.66,657.28,2.127]
[1751320507554,1.50671472,657.49,657.28,2.127]
[1751320508253,1.50671472,657.44,657.28,2.127]
[1751320509151,1.50671472,657.43,657.28,2.127]
[1751320510255,1.50671472,657.41,657.28,2.127]
[1751320511255,1.50671472,657.4,657.28,2.127]
[1751320511855,1.50671472,657.39,657.28,2.127]
[1751320512257,1.50671472,657.38,657.28,2.127]
[1751320513258,1.50671472,657.36,657.28,2.127]
[1751320514255,1.50671472,657.35,657.28,2.127]
[1751320515359,1.50671472,657.34,657.28,2.127]
[1751320515658,1.50671472,657.35,657.28,2.127]
[1751320516856,1.50671472,657.33,657.28,2.127]
[1751320518056,1.50671472,657.34,657.28,2.127]
[1751320519158,1.50671472,657.35,657.28,2.127]
[1751320519860,1.50671472,657.36,657.28,2.127]
[1751320520260,1.50671472,657.38,657.28,2.127]
[1751320523360,1.50671472,657.38,657.2,3.893]
[1751320523863,1.50671472,657.39,657.2,3.893]
[1751320525559,1.50671472,657.39,657.2,2.099]
[1751320526264,1.50671472,657.46,657.2,2.099]
[1751320527363,1.50671472,657.45,657.2,2.099]
[1751320528860,1.50671472,657.46,657.2,2.099]
[1751320529059,1.50671472,657.46,657.21,1.654]
[1751320529464,1.50671472,657.47,657.21,1.654]
[1751320529663,1.50671472,657.54,657.21,1.654]
[1751320531059,1.50671472,657.55,657.21,1.654]
[1751320531463,1.50671472,657.56,657.21,1.654]
[1751320531861,1.50671472,657.57,657.21,1.654]
[1751320532063,1.50671472,657.58,657.21,1.654]
[1751320532766,1.50671472,657.64,657.21,1.654]
[1751320533263,1.50671472,657.55,657.21,1.654]
[1751320535466,1.50671472,657.56,657.21,1.654]
[1751320536067,1.50671472,657.52,657.21,1.654]
[1751320538569,1.50671472,657.51,657.21,1.654]
[1751320539465,1.50671472,657.5,657.21,1.654]
[1751320540469,1.50671472,657.49,657.21,1.654]
[1751320541666,1.50671472,657.47,657.21,1.654]
[1751320542269,1.50671472,657.58,657.21,1.654]
[1751320543166,1.50671472,657.59,657.21,1.654]
[1751320543371,1.50671472,657.58,657.21,1.654]
[1751320545974,1.50671472,657.58,657.14,2.131]
[1751320547076,1.50671472,657.59,657.14,2.131]
[1751320547374,1.50671472,657.58,657.14,2.131]
[1751320548577,1.50671472,657.61,657.14,2.131]
[1751320549380,1.50671472,657.6,657.14,2.131]
[1751320549779,1.50671472,657.61,657.15,2.078]
[1751320551781,1.50671472,657.68,657.15,2.078]
[1751320553182,1.50671472,657.69,657.16,1.722]
[1751320555580,1.50671472,657.71,657.16,1.722]
[1751320557084,1.50671472,657.72,657.16,1.722]
[1751320557380,1.50671472,657.71,657.16,1.722]
[1751320558185,1.50671472,657.72,657.16,1.722]
[1751320558486,1.50671472,657.71,657.16,1.722]
[1751320560286,1.50671472,657.74,657.16,1.722]
[1751320561590,1.50671472,657.67,657.16,1.722]
[1751320565691,1.50671472,657.66,657.16,1.722]
[1751320565890,1.50671472,657.72,657.16,1.722]
[1751320567090,2.26228487,657.85,657.16,1.722]
[1751320567091,1.50671472,657.71,657.16,1.722]
[1751320573190,1.50671472,657.7,657.16,1.722]
[1751320573590,1.50671472,657.71,657.16,1.722]
[1751320573787,1.50671472,657.73,657.16,1.722]
[1751320574393,1.50671472,657.73,657.17,2.522]
[1751320575189,1.50671472,657.72,657.17,2.522]
[1751320575694,1.50671472,657.68,657.17,2.522]
[1751320576090,1.50671472,657.68,657.18,1.743]
[1751320576894,1.50671472,657.69,657.18,1.743]
[1751320577494,1.50671472,657.67,657.18,1.743]
[1751320578295,1.50671472,657.68,657.18,1.743]
[1751320579096,1.50671472,657.67,657.18,1.743]
[1751320579495,1.50671472,657.67,657.19,1.864]
[1751320580501,1.50671472,657.62,657.19,1.864]
[1751320580700,1.50671472,657.6,657.19,1.864]
[1751320580897,1.50671472,657.58,657.19,1.864]
[1751320581101,1.50671472,657.57,657.19,1.864]
[1751320581301,1.50671472,657.58,657.19,1.864]
[1751320581700,1.50671472,657.57,657.19,1.864]
[1751320582101,1.50671472,657.56,657.19,1.864]
[1751320582297,1.50671472,657.57,657.19,1.864]
[1751320582895,1.50671472,657.5,657.19,1.864]
[1751320583298,1.50671472,657.49,657.19,1.864]
[1751320584103,1.50671472,657.48,657.19,1.864]
[1751320584302,1.50671472,657.49,657.19,1.864]
[1751320585206,1.50671472,657.48,657.19,1.864]
[1751320585406,1.50671472,657.46,657.19,1.864]
[1751320585605,1.50671472,657.44,657.19,1.864]
[1751320586305,0.26473139,657.79,657.19,1.864]
[1751320586306,1.50671472,657.45,657.19,1.864]
[1751320587207,1.50671472,657.43,657.19,1.864]
[1751320587405,1.50671472,657.44,657.19,1.864]
[1751320588006,1.50671472,657.38,657.19,1.864]
[1751320588405,1.50671472,657.39,657.19,1.864]
[1751320588706,1.50671472,657.4,657.19,1.864]
[1751320589206,1.50671472,657.39,657.19,1.864]
[1751320589407,1.50671472,657.41,657.19,1.864]
[1751320590307,1.50671472,657.42,657.19,1.864]
[1751320591306,1.50671472,657.43,657.19,1.864]
[1751320592208,1.50671472,657.44,657.19,1.864]
[1751320593207,2.26228487,657.6,657.19,1.864]
[1751320593208,1.50671472,657.45,657.19,1.864]
[1751320593409,1.50671472,657.4,657.19,1.864]
[1751320594108,1.12991062,657.21,657.19,1.864]
[1751320594310,1.12991062,657.22,657.19,1.864]
[1751320594905,1.12991062,657.21,657.19,1.864]
[1751320595409,1.12991062,657.22,657.19,1.864]
[1751320595606,0.26473139,657.79,657.19,1.864]
[1751320595607,1.50671472,657.31,657.19,1.864]
[1751320596405,1.129318,657.21,657.19,1.864]
[1751320596609,1.129318,657.22,657.19,1.864]
[1751320597107,1.129318,657.23,657.19,1.864]
[1751320598411,1.129318,657.24,657.19,1.864]
[1751320598712,1.129318,657.25,657.19,1.864]
[1751320599708,1.129318,657.22,657.19,1.864]
[1751320600213,1.129318,657.23,657.19,1.864]
[1751320601210,0.26473139,657.79,657.19,1.864]
[1751320601211,1.129318,657.24,657.19,1.864]
[1751320601412,1.129318,657.25,657.19,1.864]
[1751320602618,1.129318,657.22,657.19,1.864]
[1751320604115,1.129318,657.23,657.19,1.864]
[1751320605420,1.129318,657.24,657.19,1.864]
[1751320605720,1.129318,657.26,657.19,1.864]
[1751320606321,1.129318,657.27,657.19,1.864]
[1751320608424,1.129318,657.28,657.19,1.864]
[1751320608627,1.129318,657.27,657.19,1.864]
[1751320610219,1.129318,657.26,657.19,1.864]
[1751320611322,1.129318,657.25,657.19,1.864]
[1751320615124,1.129318,657.28,657.19,1.864]
[1751320615624,1.129318,657.27,657.19,1.864]
[1751320621825,1.129318,657.26,657.19,1.864]
[1751320622626,1.129318,657.26,657.12,2.551]
[1751320623530,1.129318,657.25,657.12,2.551]
[1751320624231,1.50671472,657.47,657.12,2.551]
[1751320625034,1.50671472,657.4,657.12,2.551]
[1751320625228,1.50671472,657.39,657.12,2.551]
[1751320625730,1.50671472,657.38,657.12,2.551]
[1751320626529,1.50671472,657.37,657.12,2.551]
[1751320627433,1.50671472,657.36,657.12,2.551]
[1751320628141,1.50671472,657.37,657.12,2.551]
[1751320628336,1.50671472,657.36,657.12,2.551]
[1751320629535,1.50671472,657.38,657.04,2.277]
[1751320629733,1.50671472,657.37,657.04,2.277]
[1751320629936,1.50671472,657.36,657.04,2.277]
[1751320630342,1.50671472,657.35,657.04,2.277]
[1751320630642,1.50671472,657.36,657.04,2.277]
[1751320631239,1.50671472,657.34,657.04,2.277]
[1751320631444,1.50671472,657.33,657.04,2.277]
[1751320631842,1.50671472,657.32,657.04,2.277]
[1751320632342,1.50671472,657.31,657.04,2.277]
[1751320633346,1.50671472,657.3,657.04,2.277]
[1751320633642,1.50671472,657.3,657.05,2.45]
[1751320634341,1.50671472,657.28,657.05,2.45]
[1751320635347,1.50671472,657.26,657.05,2.45]
[1751320635644,2.26228487,657.38,657.05,2.45]
[1751320635645,1.50671472,657.24,657.05,2.45]
[1751320636247,1.50671472,657.23,657.05,2.45]
[1751320636547,1.50671472,657.22,657.05,2.45]
[1751320637544,1.50671472,657.19,657.05,2.45]
[1751320638250,1.50671472,657.16,657.05,2.45]
[1751320638644,1.50671472,657.17,657.05,2.45]
[1751320638944,1.50671472,657.27,657.05,2.45]
[1751320639344,1.50671472,657.24,657.05,2.45]
[1751320640350,1.50671472,657.22,657.05,2.45]
[1751320641245,1.50671472,657.21,657.05,2.45]
[1751320642447,1.50671472,657.2,657.05,2.45]
[1751320644753,1.50671472,657.21,657.05,2.45]
[1751320644950,1.50671472,657.23,657.05,2.45]
[1751320645353,1.50671472,657.22,657.05,2.45]
[1751320645650,1.50671472,657.24,657.05,2.45]
[1751320646253,1.50671472,657.18,657.05,2.45]
[1751320646654,1.50671472,657.19,657.05,2.45]
[1751320647454,1.50671472,657.18,657.05,2.45]
[1751320647755,1.50671472,657.2,657.05,2.45]
[1751320648951,1.50671472,657.16,657.05,2.45]
[1751320649353,1.50671472,657.18,657.05,2.45]
[1751320650652,1.50671472,657.18,657.04,2.277]
[1751320652355,1.50671472,657.17,657.04,2.277]
[1751320652859,1.50671472,657.16,657.04,2.277]
[1751320654762,1.50671472,657.12,657.04,2.277]
[1751320655260,1.50671472,657.1,657.04,2.277]
[1751320657759,1.50671472,657.09,657.04,2.277]
[1751320659162,2.26228487,657.14,657.04,2.277]
[1751320661367,2.26228487,657.13,657.04,2.277]
[1751320661567,2.26228487,657.14,657.04,2.277]
[1751320662469,2.26228487,657.13,657.04,2.277]
[1751320662769,2.26228487,657.14,657.04,2.277]
[1751320663569,2.26228487,657.13,657.04,2.277]
[1751320664371,3.78478812,657.58,657.04,2.277]
[1751320664372,2.26228487,657.12,657.04,2.277]
[1751320664770,2.26228487,657.13,657.04,2.277]
[1751320664969,2.26228487,657.12,657.04,2.277]
[1751320668379,2.26228487,657.12,657.01,2.273]
[1751320668875,1.51161199,657.02,657.01,2.273]
[1751320669272,2.26228487,657.12,657.01,2.273]
[1751320670479,1.51160569,657.02,657.01,2.273]
[1751320672174,1.51160569,657.04,657.01,2.273]
[1751320673280,1.51160569,657.05,657.01,2.273]
[1751320673678,1.51160569,657.06,657.01,2.273]
[1751320673982,1.51160569,657.11,657.01,2.273]
[1751320674678,1.51160569,657.11,656.83,1.594]
[1751320674879,1.51160569,657.13,656.83,1.594]
[1751320675280,1.51160569,657.16,656.83,1.594]
[1751320675683,1.51160569,657.17,656.83,1.594]
[1751320677586,1.51160569,657.17,656.84,1.688]
[1751320677782,1.51160569,657.21,656.84,1.688]
[1751320679082,1.51160569,657.19,656.84,1.688]
[1751320679282,1.51160569,657.22,656.84,1.688]
[1751320679888,1.51160569,657.23,656.84,1.688]
[1751320680585,1.51160569,657.26,656.84,1.688]
[1751320681685,1.51160569,657.27,656.84,1.688]
[1751320681889,1.51160569,657.28,656.84,1.688]
[1751320682090,1.51160569,657.29,656.84,1.688]
[1751320682390,1.51160569,657.3,656.84,1.688]
[1751320683390,1.51160569,657.31,656.84,1.688]
[1751320683990,1.51160569,657.31,656.85,1.935]
[1751320684392,1.51160569,657.32,656.85,1.935]
[1751320685386,1.51160569,657.33,656.85,1.935]
[1751320685687,1.51160569,657.32,656.85,1.935]
[1751320686489,1.51160569,657.33,656.85,1.935]
[1751320687693,1.51160569,657.31,656.85,1.935]
[1751320688194,1.51160569,657.31,656.86,2.242]
[1751320688589,1.51160569,657.3,656.86,2.242]
[1751320689495,1.51160569,657.31,656.86,2.242]
[1751320689695,1.51160569,657.3,656.86,2.242]
[1751320691897,1.51160569,657.27,656.86,2.242]
[1751320692096,1.51160569,657.28,656.86,2.242]
[1751320692695,1.51160569,657.29,656.86,2.242]
[1751320692899,1.51160569,657.27,656.86,2.242]
[1751320693300,1.51160569,657.26,656.86,2.242]
[1751320693596,1.51160569,657.27,656.86,2.242]
[1751320693795,1.51160569,657.58,656.86,2.242]
[1751320694101,1.51160569,657.57,656.86,2.242]
[1751320695300,1.51160569,657.64,656.86,2.242]
[1751320695796,1.51160569,657.66,656.86,2.242]
[1751320697003,1.51160569,657.66,656.87,1.657]
[1751320697199,1.51160569,657.6,656.87,1.657]
[1751320697402,1.51160569,657.62,656.87,1.657]
[1751320700209,1.51160569,657.62,656.88,1.755]
[1751320700404,1.51160569,657.63,656.88,1.755]
[1751320702404,1.51160569,657.63,656.89,2.393]
[1751320702606,1.51160569,657.62,656.89,2.393]
[1751320703404,1.51160569,657.63,656.89,2.393]
[1751320703708,1.51160569,657.57,656.89,2.393]
[1751320705205,1.51160569,657.46,656.89,2.393]
[1751320705709,0.26473139,657.79,656.89,2.393]
[1751320705710,1.51160569,657.45,656.89,2.393]
[1751320714721,1.51160569,657.4,656.89,2.393]
[1751320714921,1.51160569,657.44,656.89,2.393]
[1751320715118,1.51160569,657.44,656.9,2.412]
[1751320715718,1.51160569,657.45,656.9,2.412]
[1751320717321,1.51160569,657.44,656.9,2.412]
[1751320717520,1.51160569,657.43,656.9,2.412]
[1751320717824,1.51160569,657.42,656.9,2.412]
[1751320718122,1.51160569,657.43,656.9,2.412]
[1751320718325,1.51160569,657.42,656.9,2.412]
[1751320721426,1.51160569,657.41,656.9,2.412]
[1751320723728,1.51160569,657.4,656.9,2.412]
[1751320724329,1.51160569,657.41,656.9,2.412]
[1751320724731,1.51160569,657.4,656.9,2.412]
[1751320724925,1.51160569,657.39,656.9,2.412]
[1751320725427,1.51160569,657.38,656.9,2.412]
[1751320725729,1.51160569,657.37,656.9,2.412]
[1751320726132,1.51160569,657.37,656.91,2.095]
[1751320727031,1.51160569,657.38,656.91,2.095]
[1751320727933,1.51160569,657.4,656.91,2.095]
[1751320728533,1.51160569,657.41,656.91,2.095]
[1751320729533,1.51160569,657.4,656.91,2.095]
[1751320729733,1.51160569,657.41,656.91,2.095]
[1751320730433,1.51160569,657.4,656.91,2.095]
[1751320730930,1.51160569,657.39,656.92,1.738]
[1751320731334,1.51160569,657.38,656.92,1.738]
[1751320732333,0.26473139,657.79,656.92,1.738]
[1751320732334,1.51160569,657.37,656.92,1.738]
[1751320732830,1.51160569,657.37,656.93,1.91]
[1751320733035,1.51160569,657.38,656.93,1.91]
[1751320733429,1.51160569,657.37,656.93,1.91]
[1751320734332,1.51160569,657.36,656.93,1.91]
[1751320734837,1.51160569,657.37,656.93,1.91]
[1751320735536,1.51160569,657.36,656.93,1.91]
[1751320736938,1.51160569,657.37,656.93,1.91]
[1751320737638,1.51160569,657.36,656.93,1.91]
[1751320737836,1.51160569,657.34,656.93,1.91]
[1751320738037,1.51160569,657.32,656.93,1.91]
[1751320738438,1.51160569,657.31,656.93,1.91]
[1751320738637,1.51160569,657.33,656.93,1.91]
[1751320738839,1.51160569,657.32,656.93,1.91]
[1751320739036,1.51160569,657.34,656.93,1.91]
[1751320740637,1.51160569,657.32,656.93,1.91]
[1751320742543,1.51160569,657.33,656.93,1.91]
[1751320743341,1.51160569,657.34,656.93,1.91]
[1751320745145,1.51160569,657.36,656.93,1.91]
[1751320745749,1.51160569,657.37,656.93,1.91]
[1751320746446,1.51160569,657.39,656.93,1.91]
[1751320748046,1.51160569,657.44,656.93,1.91]
[1751320748748,0.26473139,657.79,656.93,1.91]
[1751320748749,1.51160569,657.48,656.93,1.91]
[1751320748945,1.51160569,657.65,656.97,1.13305887]
[1751320749146,1.51160569,657.65,656.96,1.13305887]
[1751320749444,1.51160569,657.68,656.94,2.81705887]
[1751320749649,1.51160569,657.67,656.94,1.684]
[1751320750345,1.51160569,657.69,656.94,1.684]
[1751320751251,1.51160569,657.7,656.94,1.684]
[1751320751445,1.51160569,657.71,656.94,1.684]
[1751320752449,1.51160569,657.72,656.94,1.684]
[1751320753350,1.51160569,657.73,656.94,1.684]
[1751320754350,1.51160569,657.74,656.94,1.684]
[1751320754651,1.51160569,657.74,656.95,1.939]
[1751320754850,1.51160569,657.73,656.95,1.939]
[1751320755552,1.51160569,657.74,656.95,1.939]
[1751320756252,1.51160569,657.77,656.95,1.939]
[1751320756452,1.51160569,657.75,656.95,1.939]
[1751320756753,1.51160569,657.76,656.95,1.939]
[1751320757454,1.51160569,657.77,656.96,2.278]
[1751320757650,1.51160569,657.76,656.96,2.278]
[1751320757855,1.51160569,657.73,656.96,2.278]
[1751320758058,1.51160569,657.73,656.97,1.794]
[1751320758350,1.51160569,657.74,656.97,1.794]
[1751320759555,1.51160569,657.75,656.97,1.794]
[1751320760355,1.51160569,657.76,656.97,1.794]
[1751320761053,1.51160569,657.75,656.97,1.794]
[1751320761655,1.51160569,657.76,656.97,1.794]
[1751320762762,1.51160569,657.76,656.98,1.766]
[1751320763356,1.51160569,657.77,656.98,1.766]
[1751320764260,1.51160569,657.77,656.99,2.036]
[1751320764862,1.51160569,657.77,657.0,2.655]
[1751320765363,1.51160569,657.78,657.0,2.655]
[1751320765662,0.26473139,657.79,657.0,2.655]
[1751320765663,1.51160569,657.77,657.0,2.655]
[1751320765864,1.51160569,657.76,657.0,2.655]
[1751320766068,1.51160569,657.7,657.0,2.655]
[1751320767469,1.51160569,657.69,657.0,2.655]
[1751320767764,1.51160569,657.7,657.0,2.655]
[1751320768070,1.51160569,657.68,657.0,2.655]
[1751320771672,2.52701626,657.79,657.0,2.655]
[1751320771673,1.51160569,657.69,657.0,2.655]
[1751320771973,1.51160569,657.68,657.0,2.655]
[1751320772273,1.51160569,657.68,657.01,2.345]
[1751320772473,1.51160569,657.69,657.01,2.345]
[1751320772673,1.51160569,657.7,657.01,2.345]
[1751320772970,1.51160569,657.64,657.01,2.345]
[1751320777376,1.51160569,657.63,657.01,2.345]
[1751320780574,1.51160569,657.62,657.01,2.345]
[1751320780878,1.51160569,657.61,657.01,2.345]
[1751320781278,1.51160569,657.61,657.02,2.147]
[1751320781475,1.51160569,657.6,657.02,2.147]
[1751320781674,1.51160569,657.61,657.03,2.55]
[1751320782377,1.51160569,657.6,657.03,2.55]
[1751320782579,1.51160569,657.59,657.03,2.55]
[1751320784876,1.51160569,657.58,657.03,2.55]
[1751320787482,1.51160569,657.57,657.03,2.55]
[1751320789379,1.51160569,657.56,657.03,2.55]
[1751320791483,1.51160569,657.55,657.03,2.55]
[1751320792381,1.51160569,657.54,657.03,2.55]
[1751320795384,2.26228487,657.64,657.03,2.55]
[1751320795385,1.51160569,657.53,657.03,2.55]
[1751320797389,1.51160569,657.52,657.03,2.55]
[1751320798392,1.51160569,657.5,657.03,2.55]
[1751320798590,1.51160569,657.49,657.03,2.55]
[1751320799887,1.51160569,657.49,657.04,1.711]
[1751320801591,1.51160569,657.48,657.04,1.711]
[1751320801786,1.51160569,657.34,657.04,1.711]
[1751320804192,1.51160569,657.36,657.04,1.711]
[1751320804393,1.51160569,657.35,657.04,1.711]
[1751320805990,1.51160569,657.4,657.04,1.711]
[1751320806490,1.51160569,657.39,657.04,1.711]
[1751320806689,1.51160569,657.38,657.04,1.711]
[1751320807193,1.51160569,657.51,657.04,1.711]
[1751320808692,1.51160569,657.49,657.04,1.711]
[1751320809096,1.51160569,657.5,657.04,1.711]
[1751320809396,1.51160569,657.5,657.05,1.863]
[1751320809598,1.51160569,657.33,657.05,1.863]
[1751320809796,1.51160569,657.31,657.05,1.863]
[1751320810396,1.51160569,657.36,657.05,1.863]
[1751320810597,1.51160569,657.41,657.05,1.863]
[1751320811196,1.51160569,657.38,657.05,1.863]
[1751320811797,1.51160569,657.38,657.06,2.276]
[1751320812398,1.51160569,657.43,657.06,2.276]
[1751320812600,1.51160569,657.41,657.06,2.276]
[1751320813598,1.51160569,657.42,657.06,2.276]
[1751320814298,1.51160569,657.38,657.06,2.276]
[1751320814698,1.51160569,657.34,657.06,2.276]
[1751320814904,1.51160569,657.33,657.06,2.276]
[1751320815199,1.51160569,657.34,657.06,2.276]
[1751320815402,1.51160569,657.32,657.06,2.276]
[1751320816402,1.51160569,657.33,657.06,2.276]
[1751320816599,1.51160569,657.32,657.06,2.276]
[1751320817102,1.51160569,657.33,657.06,2.276]
[1751320819704,1.51160569,657.32,657.06,2.276]
[1751320819901,1.51160569,657.33,657.06,2.276]
[1751320820402,1.51160569,657.41,657.06,2.276]
[1751320821305,1.51160569,657.42,657.06,2.276]
[1751320821505,1.51160569,657.45,657.06,2.276]
[1751320822306,1.51160569,657.4,657.06,2.276]
[1751320825403,2.26228487,657.51,657.06,2.276]
[1751320825404,1.51160569,657.39,657.06,2.276]
[1751320827106,1.51160569,657.4,657.06,2.276]
[1751320827306,1.51160569,657.41,657.06,2.276]
[1751320827707,1.51160569,657.4,657.06,2.276]
[1751320828907,1.51160569,657.41,657.06,2.276]
[1751320829110,1.51160569,657.4,657.06,2.276]
[1751320829710,1.51160569,657.41,657.06,2.276]
[1751320829909,1.51160569,657.4,657.04,1.711]
[1751320830107,1.51160569,657.41,657.04,1.711]
[1751320830412,1.51160569,657.4,657.04,1.711]
[1751320830610,1.51160569,657.41,657.04,1.711]
[1751320831008,2.26228487,657.52,657.04,1.711]
[1751320831009,1.51160569,657.42,657.04,1.711]
[1751320831211,1.51160569,657.41,657.04,1.711]
[1751320831511,0.26476059,657.8,657.04,1.711]
[1751320831512,1.51160569,657.42,657.04,1.711]
[1751320831807,1.51160569,657.52,657.04,1.711]
[1751320832208,1.51160569,657.58,657.04,1.711]
[1751320832414,1.51160569,657.52,657.04,1.711]
[1751320832609,1.51160569,657.51,657.04,1.711]
[1751320832812,1.51160569,657.48,657.04,1.711]
[1751320833412,1.51160569,657.45,657.04,1.711]
[1751320834410,1.51160569,657.46,657.04,1.711]
[1751320835109,1.51160569,657.45,657.04,1.711]
[1751320835514,1.51160569,657.46,657.04,1.711]
[1751320836716,1.51160569,657.45,657.04,1.711]
[1751320837117,1.51160569,657.46,657.04,1.711]
[1751320838215,0.26476059,657.8,657.04,1.711]
[1751320838216,1.51160569,657.44,657.04,1.711]
[1751320838418,1.51160569,657.43,657.04,1.711]
[1751320839417,0.26476059,657.8,657.04,1.711]
[1751320839418,1.51160569,657.45,657.04,1.711]
[1751320840819,1.51160569,657.45,656.83,2.425]
[1751320844519,1.51160569,657.46,656.83,2.425]
[1751320848924,1.51160569,657.47,656.83,2.425]
[1751320849320,2.26228487,657.6,656.83,2.425]
[1751320849321,1.51160569,657.46,656.83,2.425]
[1751320850425,1.51160569,657.51,656.83,2.425]
[1751320853726,1.51160569,657.53,656.83,2.425]
[1751320853929,2.26228487,657.68,656.83,2.425]
[1751320853930,1.51160569,657.55,656.83,2.425]
[1751320854722,1.51160569,657.59,656.84,1.13305887]
[1751320855425,1.51160569,657.6,656.84,1.13305887]
[1751320856923,1.51160569,657.61,656.85,1.13305887]
[1751320857127,1.51160569,657.62,656.86,1.13305887]
[1751320857427,1.51160569,657.63,656.86,1.13305887]
[1751320857723,1.51160569,657.63,656.87,1.13305887]
[1751320858324,1.51160569,657.64,656.87,1.13305887]
[1751320858528,1.51160569,657.64,656.86,1.13305887]
[1751320858724,1.51160569,657.64,656.87,1.13305887]
[1751320859324,1.51160569,657.65,656.86,1.13305887]
[1751320859627,1.51160569,657.73,656.91,1.13305887]
[1751320860027,0.26473139,657.96,656.93,1.13305887]
[1751320860028,1.51160569,657.75,656.93,1.13305887]
[1751320860430,1.51160569,657.73,656.96,1.13305887]
[1751320861635,1.51160569,657.78,657.0,1.13305887]
[1751320862136,1.51160569,657.77,657.01,1.13305887]
[1751320862431,1.51160569,657.78,657.0,1.13305887]
[1751320862832,1.51160569,657.79,657.0,1.13305887]
[1751320863233,1.51160569,657.78,657.0,1.13305887]
[1751320863538,1.51160569,657.79,656.98,1.13305887]
[1751320865334,1.51160569,657.8,656.97,1.13305887]
[1751320866238,1.51160569,657.81,656.97,1.13305887]
[1751320866535,1.51160569,657.81,656.98,1.75]
[1751320867136,1.51160569,657.8,656.98,1.75]
[1751320867335,1.51160569,657.82,656.98,1.75]
[1751320867838,1.51160569,657.86,656.98,1.75]
[1751320868039,1.51160569,657.89,656.98,1.75]
[1751320868338,1.51160569,657.9,656.98,1.75]
[1751320869336,0.26468709,658.09,656.98,1.75]
[1751320869337,1.51160569,657.91,656.98,1.75]
[1751320869537,1.51160569,657.92,656.98,2.88305887]
[1751320870335,1.51160569,657.93,656.98,2.88305887]
[1751320870537,1.51160569,657.93,656.98,1.75]
[1751320870840,1.51160569,657.92,656.98,1.75]
[1751320871241,1.51160569,657.93,656.98,1.75]
[1751320872542,1.51160569,657.9,656.98,1.75]
[1751320873443,1.51160569,657.9,656.99,1.546]
[1751320874246,1.51160569,657.82,656.99,1.546]
[1751320874641,1.51160569,657.78,656.99,1.546]
[1751320879444,1.51160569,657.77,656.99,1.546]
[1751320882050,1.51160569,657.76,656.99,1.546]
[1751320883053,1.51160569,657.74,656.99,1.546]
[1751320883752,1.51160569,657.75,656.99,1.546]
[1751320883953,2.26228487,657.87,656.99,1.546]
[1751320884249,1.50856492,657.75,656.99,1.546]
[1751320885249,1.50856492,657.74,656.99,1.546]